fUSD/lending_fUSD_20240914
["ID","MTS","AMOUNT","RATE_DAILY","PERIOD"]
[338147716,1726307444467,-151.0,0.00014999,2]
[338147717,1726307444476,-178.698011,0.00014999,2]
[338147718,1726307444486,-151.0,0.00014999,2]
[338147719,1726307444495,-178.698011,0.00014999,2]
[338147720,1726307444505,-151.0,0.00014999,2]
[338147721,1726307444515,-178.698011,0.00014999,2]
[338147722,1726307444524,-178.698011,0.00014999,2]
[338147723,1726307444534,-151.0,0.00014999,2]
[338147724,1726307444543,-151.0,0.00014999,2]
[338147725,1726307444553,-154.992102,0.00014999,2]
[338147726,1726307444563,-169.124834,0.00014999,2]
[338147727,1726307444573,-169.124834,0.00014999,2]
[338147728,1726307444582,-169.124834,0.00014999,2]
[338147729,1726307444591,-169.124834,0.00014999,2]
[338147730,1726307444600,-151.0,0.00014999,2]
[338147731,1726307444609,-151.0,0.00014999,2]
[338147732,1726307444619,-154.968071,0.00014999,2]
[338147733,1726307444628,-154.968071,0.00014999,2]
[338147734,1726307444637,-154.968071,0.00014999,2]
[338147735,1726307444646,-154.968071,0.00014999,2]
[338147736,1726307444655,-508.817366,0.00014999,2]
[338147737,1726307444665,-508.817366,0.00014999,2]
[338147738,1726307444674,-151.0,0.00014999,2]
[338147739,1726307444683,-508.817366,0.00014999,2]
[338147740,1726307444693,-151.0,0.00014999,2]
[338147741,1726307444702,-508.817366,0.00014999,2]
[338147742,1726307444711,-203.211047,0.00014999,2]
[338147743,1726307444720,-203.211047,0.00014999,2]
[338147744,1726307444729,-203.211047,0.00014999,2]
[338147745,1726307444739,-203.211047,0.00014999,2]
[338147746,1726307444748,-151.0,0.00014999,2]
[338147747,1726307444757,-151.0,0.00014999,2]
[338147748,1726307444769,-151.0,0.00014999,2]
[338147749,1726307444779,-151.0,0.00014999,2]
[338147750,1726307444789,-178.828019,0.00014999,2]
[338147751,1726307444799,-178.828019,0.00014999,2]
[338147752,1726307444808,-178.828019,0.00014999,2]
[338147753,1726307444818,-178.828019,0.00014999,2]
[338147754,1726307444827,-151.0,0.00014999,2]
[338147755,1726307444837,-155.16096,0.00014999,2]
[338147756,1726307444846,-234.511316,0.00014999,2]
[338147757,1726307444856,-234.511316,0.00014999,2]
[338147758,1726307444865,-234.511316,0.00014999,2]
[338147759,1726307444875,-151.0,0.00014999,2]
[338147760,1726307444885,-151.0,0.00014999,2]
[338147761,1726307444894,-234.511316,0.00014999,2]
[338147762,1726307444904,-151.0,0.00014999,2]
[338147763,1726307444913,-155.112066,0.00014999,2]
[338147764,1726307444923,-33518.33314388,0.00014999,3]
[338147765,1726307444933,-505.0,0.00014999,2]
[338147766,1726307444942,-274.94260165,0.00015,2]
[338147767,1726307444952,-282096.26213808,0.00015,2]
[338147768,1726307444961,-532181.24369458,0.00015,2]
[338147769,1726307444974,-1326.30959715,0.00015,2]
[338147770,1726307444997,-2500.0,0.00015,2]
[338147771,1726307445008,-294.14994472,0.00015,2]
[338147772,1726307445019,-767.3985061,0.00015,2]
[338147773,1726307445031,-2396.5336603,0.00015,2]
[338147774,1726307445042,-261.4769987,0.00015,2]
[338147775,1726307445065,-2320.0,0.00015,2]
[338147776,1726307445076,-21220.78577,0.00015,2]
[338147777,1726307445087,-34626.799998,0.00015,2]
[338147778,1726307445098,-12386.30117644,0.00015,2]
[338147779,1726307445109,-392.29490377,0.00015,2]
[338147780,1726307445122,-343.82562125,0.00015,2]
[338147781,1726307445133,-8140.2985015,0.00015,2]
[338147782,1726307445144,-1490.79089986,0.00015,2]
[338147783,1726307445155,-772.82854254,0.00015,2]
[338147784,1726307445166,-6655.27794624,0.00015,2]
[338147785,1726307445178,-680.3546727,0.00015,2]
[338147786,1726307445189,-764.825,0.00015,2]
[338147787,1726307445200,-700.1734372,0.00015,2]
[338147788,1726307445210,-464.504,0.00015,2]
[338147789,1726307445222,-12130.1628984,0.00015,2]
[338147790,1726307445233,-1806.49803386,0.00015,2]
[338147791,1726307445244,-1177.5,0.00015,2]
[338147792,1726307445278,-461.72228719,0.00015,2]
[338147793,1726307445289,-12611.58875453,0.00015,2]
[338147794,1726307445300,-1041.4084361,0.00015,2]
[338147795,1726307445312,-56781.47980791,0.00015,2]
[338147796,1726307446071,-151.0,0.0001499,2]
[338147797,1726307446081,-151.0,0.00014999,2]
[338147798,1726307446091,-227.123712,0.00014999,2]
[338147799,1726307446100,-3491.13122517,0.00015,2]
[338147800,1726307446122,-103289.98667928,0.00015,2]
[338147801,1726307446133,-4781.8685908,0.00015,2]
[338147802,1726307446145,-291.09122005,0.00015,2]
[338147803,1726307446156,-5910.94989214,0.00015,2]
[338147804,1726307446168,-264.208,0.00015,2]
[338147805,1726307446179,-300.0,0.00015,2]
[338147806,1726307446191,-419.49964303,0.00015,2]
[338147807,1726307446203,-2570.41893268,0.00015,2]
[338147808,1726307446221,-627.80669444,0.00015,2]
[338147809,1726307446245,-344.831931,0.00015,2]
[338147810,1726307446299,-3871.59662795,0.00015,2]
[338147811,1726307446361,-3358.77699819,0.00015,2]
[338147812,1726307446373,-470.61999998,0.00015,2]
[338147813,1726307446415,-281.818872,0.00015,2]
[338147814,1726307446426,-552.67613035,0.00015,2]
[338147815,1726307446475,-389.63124367,0.00015,2]
[338147816,1726307446486,-1000.18527722,0.00015,2]
[338147821,1726307550670,181.9,0.00010959,2]
[338147822,1726307966647,500.0,0.00010959,2]
[338147823,1726307972140,415.53,0.00011984,2]
[338147824,1726307982421,150.0,0.00011,2]
[338147825,1726307993790,150.0,0.00012,2]
[338147826,1726308022053,800.0,0.00012,2]
[338147827,1726308041321,150.0,0.000125,2]
[338147828,1726308070795,1000.0,0.000125,2]
[338147829,1726308083939,150.0,0.000126,2]
[338147830,1726308126647,1000.0,0.000126,2]
[338147831,1726308128556,1000.0,0.000126,2]
[338147832,1726308172512,1200.0,0.000126,2]
[338147833,1726308187367,150.0,0.0001262,2]
[338147834,1726308197429,150.0,0.0001263,2]
[338147835,1726308208187,150.0,0.0001264,2]
[338147836,1726308211626,500.0,0.00027084,120]
[338147837,1726308229203,500.0,0.0001264,2]
[338147838,1726308244544,500.0,0.0001264,2]
[338147839,1726308408758,2936.77,0.000126,2]
[338147840,1726308521530,394.75,0.00011535,2]
[338147841,1726308574504,150.0,0.00012,2]
[338147842,1726308589136,150.0,0.000121,2]
[338147843,1726308601151,150.0,0.000122,2]
[338147845,1726308616308,150.0,0.000123,2]
[338147852,1726308632111,-150.0,0.0001265,2]
[338147853,1726308632121,-150.0,0.000127,2]
[338147854,1726308632130,-150.0,0.000128,2]
[338147855,1726308632139,-150.0,0.00013,2]
[338147856,1726308632148,-250.0,0.00013382,2]
[338147857,1726308632158,-452.12,0.0001347,2]
[338147858,1726308632168,-150.0,0.00013488,2]
[338147859,1726308632177,-204.11,0.00013544,2]
[338147860,1726308632407,-173.27,0.00013639,2]
[338147861,1726308632436,-300.0,0.00013671,2]
[338147862,1726308632447,-2626.84817572,0.00013672,2]
[338147863,1726308632471,-17489.98182428,0.00013672,2]
[338147864,1726308632480,-150.0,0.00013699,2]
[338147865,1726308632489,-394.75,0.00013799,2]
[338147866,1726308632498,-200.0,0.000139,5]
[338147867,1726308632507,-171.92,0.00013959,2]
[338147868,1726308632516,-500.0,0.00014,5]
[338147869,1726308632525,-1000.0,0.00014061,2]
[338147870,1726308632534,-150.0,0.00014064,2]
[338147871,1726308632543,-232.09666956,0.000141,5]
[338147872,1726308632554,-255.97559429,0.000141,5]
[338147873,1726308632589,-311.92773615,0.000141,5]
[338147874,1726308632598,-876.67,0.00014192,2]
[338147875,1726308632607,-1100.0,0.000142,5]
[338147876,1726308632616,-1400.0,0.000143,5]
[338147877,1726308632625,-1136.473,0.00014368,2]
[338147878,1726308632634,-200.0,0.000144,5]
[338147879,1726308632643,-150.0,0.00014429,2]
[338147880,1726308632652,-200.0,0.000145,5]
[338147881,1726308632661,-192.74444817,0.00014521,2]
[338147882,1726308635442,150.0,0.000124,2]
[338147885,1726308638199,-60.32277083,0.00014521,2]
[338147886,1726308638208,-200.0,0.000146,5]
[338147887,1726308638218,-200.0,0.000147,5]
[338147888,1726308638227,-150.0,0.00014794,2]
[338147889,1726308638237,-2803.26396329,0.000148,2]
[338147890,1726308638249,-196.73603671,0.000148,2]
[338147891,1726308638258,-161.26896329,0.000148,5]
[338147892,1726308638269,-938.73103671,0.000148,5]
[338147893,1726308638278,-159.61,0.00014853,2]
[338147894,1726308638287,-178.16228768,0.0001488,2]
[338147895,1726308638295,-178.02479371,0.00014893,2]
[338147896,1726308638305,-178.02479366,0.00014894,2]
[338147897,1726308638314,-178.02479366,0.00014895,2]
[338147898,1726308638323,-265.619,0.00014895,2]
[338147899,1726308638332,-178.02479366,0.00014895,2]
[338147900,1726308638342,-178.02479366,0.00014896,2]
[338147901,1726308638351,-178.02479366,0.00014897,2]
[338147902,1726308638360,-178.02479366,0.00014898,2]
[338147903,1726308638369,-178.02479366,0.00014898,2]
[338147904,1726308638378,-178.02479366,0.00014899,2]
[338147905,1726308638387,-220.60246218,0.000149,2]
[338147906,1726308638397,-321.29554141,0.000149,2]
[338147907,1726308638414,-2326.26095859,0.000149,2]
[338147908,1726308638424,-178.02479366,0.000149,2]
[338147909,1726308638433,-35975.88818421,0.0001498,3]
[338147910,1726308638446,-1858.427974,0.0001498,3]
[338147911,1726308638457,-484.5265281,0.0001498,3]
[338147912,1726308638469,-3160.19150616,0.0001498,3]
[338147913,1726308638481,-1071.7065417,0.0001498,3]
[338147914,1726308638493,-302.5407008,0.0001498,3]
[338147919,1726308638595,-814.44476835,0.0001498,3]
[338147921,1726308638606,-401.79510273,0.0001498,3]
[338147922,1726308638616,-824.34998284,0.0001498,3]
[338147923,1726308638627,-601.51186436,0.0001498,3]
[338147926,1726308640255,-48905.13066086,0.0001498,3]
[338147927,1726308640308,-865.70751694,0.0001498,3]
[338147928,1726308640320,-601.763478,0.0001498,3]
[338147929,1726308640481,-547.23216412,0.0001498,3]
[338147937,1726308643280,-317.41637575,0.0001498,3]
[338147938,1726308643339,-81171.80000245,0.0001498,3]
[338147939,1726308643397,-54608.3114011,0.0001498,3]
[338147981,1726308646292,-690.600222,0.000148,2]
[338147982,1726308710734,150.0,0.000125,2]
[338147984,1726308739864,150.0,0.000125,2]
[338147985,1726308751474,1502.0,0.000126,2]
[338147986,1726308761274,10072.0819,0.0001254,2]
[338147987,1726308778202,150.0,0.0001261,2]
[338147988,1726308789096,150.0,0.0001264,2]
[338147989,1726308818239,150.0,0.0001264,2]
[338147990,1726308874521,200.0,0.0001264,2]
[338147991,1726308908583,500.0,0.0001264,2]
[338147992,1726308930277,1000.0,0.0001264,2]
[338147993,1726309177080,3000.0,0.0001264,2]
[338147994,1726309247971,2000.0,0.0001264,2]
[338147995,1726309374948,405.63,0.00011824,2]
[338147996,1726309535042,229.38586428,0.0001,2]
[338147997,1726309563389,160.88230691,9e-05,2]
[338147998,1726309694894,10881.99936998,0.000109,2]
[338147999,1726309707536,154.03,0.00010959,2]
[338148009,1726309831401,-5941.46,0.00013453,2]
[338148010,1726309831798,-286.18192272,0.00013453,2]
[338148014,1726309837498,-17652.35807728,0.00013453,2]
[338148015,1726309837508,-150.0,0.00013488,2]
[338148016,1726309837518,-200.0,0.00013577,2]
[338148017,1726309837527,-250.0,0.00013612,2]
[338148018,1726309837536,-250.0,0.00013652,2]
[338148019,1726309837545,-300.0,0.00013674,2]
[338148020,1726309837554,-9559.55498645,0.00013675,2]
[338148021,1726309837563,-427.57,0.00013675,2]
[338148022,1726309837573,-250.0,0.00013697,2]
[338148023,1726309837582,-150.0,0.00013699,2]
[338148024,1726309837592,-1575.61138198,0.00013707,2]
[338148025,1726309837601,-150.0,0.00013722,2]
[338148026,1726309837611,-158.77,0.00013747,2]
[338148027,1726309837620,-169.6,0.00013873,2]
[338148028,1726309837629,-499.99,0.00013873,2]
[338148029,1726309837640,-504.52,0.00013873,2]
[338148030,1726309837650,-8924.4,0.00013873,2]
[338148031,1726309837659,-447.82,0.00013894,2]
[338148032,1726309837668,-173.29,0.00013985,2]
[338148033,1726309837678,-150.99,0.00014004,2]
[338148034,1726309837687,-1000.0,0.00014018,2]
[338148035,1726309837696,-150.0,0.00014063,2]
[338148036,1726309837706,-405.63,0.00014088,2]
[338148037,1726309837715,-150.0,0.00014427,2]
[338148038,1726309837724,-379.11128013,0.000145,2]
[338148039,1726309837733,-227.760497,0.00014521,2]
[338148040,1726309837743,-333.81179738,0.00014721,2]
[338148041,1726309837752,-150.0,0.00014732,2]
[338148042,1726309837761,-150.0,0.00014753,2]
[338148043,1726309837770,-518.81925,0.0001478,2]
[338148044,1726309837779,-150.0,0.0001479,2]
[338148045,1726309838037,-150.0,0.00014791,2]
[338148046,1726309838047,-3000.0,0.000148,2]
[338148047,1726309838057,-518.81925,0.0001486,2]
[338148048,1726309838067,-4177.048,0.0001488,2]
[338148049,1726309838076,-297.37947195,0.0001489,2]
[338148050,1726309838085,-321.848,0.00014891,2]
[338148051,1726309838095,-172.896,0.00014891,2]
[338148052,1726309838104,-297.37947191,0.00014891,2]
[338148053,1726309838113,-297.37947191,0.00014892,2]
[338148054,1726309838122,-297.37947191,0.00014893,2]
[338148055,1726309838131,-297.37947191,0.00014894,2]
[338148056,1726309838140,-297.37947191,0.00014896,2]
[338148057,1726309838150,-270.86462049,0.00014896,2]
[338148058,1726309838164,-168.48175141,0.000149,2]
[338148059,1726309838173,-5052.178,0.000149,2]
[338148060,1726309838182,-258.65070813,0.000149,2]
[338148061,1726309838191,-518.81925,0.000149,2]
[338148062,1726309838200,-518.81925,0.000149,2]
[338148063,1726309838209,-1720.0,0.000149,2]
[338148064,1726309838218,-518.81925,0.0001493,2]
[338148065,1726309838227,-150.0,0.00014932,2]
[338148066,1726309838236,-420.0,0.00014985,2]
[338148067,1726309838245,-150.0,0.00014986,2]
[338148068,1726309838254,-144143.326827,0.0001499,3]
[338148069,1726309838263,-16314.4700713,0.0001499,3]
[338148070,1726309838272,-5258.91619428,0.0001499,3]
[338148071,1726309838281,-151.0,0.0001499,2]
[338148072,1726309838290,-151.0,0.0001499,2]
[338148073,1726309838299,-151.0,0.0001499,2]
[338148074,1726309838308,-151.0,0.0001499,2]
[338148075,1726309838317,-151.0,0.0001499,2]
[338148076,1726309838326,-151.0,0.0001499,2]
[338148077,1726309838335,-151.0,0.0001499,2]
[338148078,1726309838344,-227.165109,0.0001499,2]
[338148079,1726309838353,-151.0,0.0001499,2]
[338148080,1726309838362,-151.0,0.0001499,2]
[338148081,1726309838371,-151.0,0.0001499,2]
[338148082,1726309838381,-151.0,0.0001499,2]
[338148083,1726309838390,-151.0,0.0001499,2]
[338148084,1726309838399,-151.0,0.0001499,2]
[338148085,1726309838409,-151.0,0.0001499,2]
[338148086,1726309838418,-164.157921,0.0001499,2]
[338148087,1726309838427,-164.157921,0.0001499,2]
[338148088,1726309838436,-216214.990241,0.0001499,3]
[338148089,1726309838445,-168908.53734938,0.0001499,3]
[338148091,1726309839532,-409.94986915,0.0001499,3]
[338148093,1726309842414,-297.37947191,0.00014897,2]
[338148094,1726309842424,-4691.0211616,0.0001499,3]
[338148097,1726309842455,-3674.2143007,0.0001499,3]
[338148098,1726309842531,-397.66172814,0.0001499,3]
[338148099,1726309842543,-606.28171132,0.0001499,3]
[338148100,1726309842554,-636.87818,0.0001499,3]
[338148101,1726309842567,-489.81169158,0.0001499,3]
[338148102,1726309842600,-17255.96293721,0.0001499,3]
[338148103,1726309842658,-530.70724899,0.0001499,3]
[338148124,1726309843413,-14265.34945311,0.0001499,3]
[338148126,1726309872680,218.62,0.00028,120]
[338148127,1726309952150,411.28,0.00012027,2]
[338148128,1726310486150,390.71,0.00011883,2]
[338148162,1726311007410,417.42,0.00011667,2]
[338148172,1726311031582,-150.0,0.00013488,2]
[338148173,1726311031592,-150.0,0.00013488,2]
[338148174,1726311031602,-276.02,0.00013615,2]
[338148175,1726311031629,-723.98,0.00013615,2]
[338148176,1726311031638,-173.29,0.00013618,2]
[338148178,1726311031647,-150.0,0.00013699,2]
[338148180,1726311031656,-150.0,0.00013722,2]
[338148182,1726311031666,-250.0,0.00013744,2]
[338148183,1726311031675,-250.0,0.00013748,2]
[338148184,1726311031684,-385.51,0.00013759,2]
[338148185,1726311031698,-150.0,0.00013781,2]
[338148186,1726311031707,-250.0,0.00013783,2]
[338148187,1726311031717,-158.66,0.00013807,2]
[338148188,1726311031727,-499.99,0.0001382,2]
[338148189,1726311031736,-897.62584188,0.00013864,2]
[338148208,1726311037644,-218.29415812,0.00013864,2]
[338148209,1726311037654,-106.28884125,0.00013893,2]
[338148210,1726311037668,-64.18115875,0.00013893,2]
[338148211,1726311037677,-300.0,0.000139,5]
[338148212,1726311037687,-238.19731627,0.0001393,2]
[338148213,1726311037767,-179.22268373,0.0001393,2]
[338148214,1726311037777,-181.31,0.00013986,2]
[338148215,1726311037786,-131.87454849,0.00014,5]
[338148216,1726311037798,-468.12545151,0.00014,5]
[338148217,1726311037807,-150.0,0.00014059,2]
[338148218,1726311037816,-900.0,0.000141,5]
[338148219,1726311037826,-1200.0,0.000142,5]
[338148220,1726311037835,-300.0,0.00014246,2]
[338148221,1726311037845,-204.984447,0.00014247,2]
[338148222,1726311037855,-1500.0,0.000143,5]
[338148223,1726311037865,-300.0,0.000144,5]
[338148224,1726311037876,-150.0,0.0001442,2]
[338148225,1726311037885,-233.53764317,0.000145,5]
[338148226,1726311037909,-66.46235683,0.000145,5]
[338148227,1726311037920,-300.0,0.000146,5]
[338148228,1726311037930,-421.53684401,0.00014688,2]
[338148229,1726311037940,-300.0,0.000147,5]
[338148230,1726311037950,-150.0,0.00014742,2]
[338148231,1726311037959,-150.0,0.00014752,2]
[338148232,1726311037969,-150.0,0.00014774,2]
[338148233,1726311037978,-150.0,0.0001478,2]
[338148234,1726311037987,-3000.0,0.000148,2]
[338148235,1726311037997,-300.0,0.000148,5]
[338148236,1726311038006,-150.0,0.0001482,2]
[338148237,1726311038015,-150.0,0.0001484,2]
[338148238,1726311038025,-150.0,0.0001484,2]
[338148239,1726311038035,-162.83837,0.0001484,2]
[338148240,1726311038045,-1077.19959479,0.00014851,2]
[338148241,1726311038055,-150.0,0.00014863,2]
[338148242,1726311038065,-5659.15244451,0.0001489,2]
[338148243,1726311038102,-2273.31375549,0.0001489,2]
[338148244,1726311038112,-2303.0118,0.0001489,2]
[338148245,1726311038127,-422.1155,0.0001489,2]
[338148246,1726311038137,-311.6807,0.0001489,2]
[338148247,1726311038146,-1000.0,0.0001489,2]
[338148248,1726311038156,-428.62305143,0.0001489,2]
[338148249,1726311038166,-2500.0,0.0001489,2]
[338148250,1726311038175,-344.96,0.00014891,2]
[338148251,1726311038185,-172.896,0.00014891,2]
[338148252,1726311038195,-428.62305141,0.00014891,2]
[338148253,1726311038204,-428.62305141,0.00014892,2]
[338148254,1726311038213,-289.3622494,0.00014893,2]
[338148255,1726311038252,-139.26080201,0.00014893,2]
[338148256,1726311038262,-151.59921003,0.00014894,2]
[338148257,1726311038285,-277.02384138,0.00014894,2]
[338148258,1726311038298,-428.62305141,0.00014896,2]
[338148259,1726311038308,-428.62305141,0.00014897,2]
[338148260,1726311038317,-391.61353798,0.00014898,2]
[338148262,1726311039801,-37.00951343,0.00014898,2]
[338148263,1726311039811,-428.62305141,0.00014899,2]
[338148264,1726311039820,-428.62305141,0.000149,2]
[338148265,1726311039830,-150.0,0.0001493,2]
[338148266,1726311039839,-150.0,0.00014937,2]
[338148267,1726311039849,-150.0,0.00014969,2]
[338148268,1726311039859,-8342.69800403,0.0001498,3]
[338148269,1726311039897,-1048.93834983,0.0001498,3]
[338148270,1726311039925,-485.49336975,0.0001498,3]
[338148284,1726311042882,-327.30108004,0.0001489,2]
[338148285,1726311042891,-142.91333875,0.0001498,3]
[338148286,1726311042906,-31443.3007627,0.0001498,3]
[338148325,1726311045780,-279.16338535,0.00013868,2]
[338148326,1726311205630,158.34256079,0.00028,120]
[338148327,1726311648060,421.92,0.00011946,2]
[338148331,1726311884584,1200.0,0.000125,2]
[338148332,1726312064233,182.36,0.00010959,2]
[338148334,1726312170785,491.14,0.00011806,2]
[338148341,1726312231876,-150.0,0.00013488,2]
[338148342,1726312231886,-150.0,0.00013488,2]
[338148343,1726312231896,-146.58949958,0.00013699,2]
[338148344,1726312231924,-3.41050042,0.00013699,2]
[338148345,1726312231939,-800.0,0.00013756,2]
[338148346,1726312231949,-250.0,0.0001386,2]
[338148347,1726312231959,-4456.02268515,0.00013868,2]
[338148348,1726312231969,-347.27,0.0001387,2]
[338148349,1726312231978,-200.0,0.00013908,2]
[338148350,1726312231987,-188.79,0.00013913,2]
[338148351,1726312231997,-300.0,0.00013938,2]
[338148352,1726312232006,-404.74,0.00013939,2]
[338148353,1726312232016,-3423.5,0.00013939,2]
[338148354,1726312232025,-1728.77,0.00013939,2]
[338148355,1726312232035,-170.47,0.00013961,2]
[338148356,1726312232044,-150.0,0.00013987,2]
[338148357,1726312232054,-150.0,0.00014063,2]
[338148358,1726312232063,-491.14,0.0001407,2]
[338148359,1726312232072,-2935.89,0.00014202,2]
[338148360,1726312232081,-150.0,0.00014428,2]
[338148361,1726312232091,-150.0,0.00014487,2]
[338148362,1726312232100,-5952.266,0.00014578,2]
[338148363,1726312232109,-247.291,0.00014578,2]
[338148364,1726312232119,-9309.0,0.00014578,2]
[338148365,1726312232128,-1079.0,0.00014578,2]
[338148366,1726312232138,-316.29138348,0.00014605,2]
[338148367,1726312232147,-150.0,0.00014712,2]
[338148368,1726312232156,-1552.977,0.00014713,2]
[338148369,1726312232165,-1261.0,0.00014713,2]
[338148370,1726312232175,-638.514,0.00014713,2]
[338148371,1726312232184,-448.0,0.00014713,2]
[338148372,1726312232193,-931.0,0.00014713,2]
[338148373,1726312232203,-1991.318,0.00014713,2]
[338148374,1726312232213,-555.907,0.00014713,2]
[338148375,1726312232222,-809.0,0.00014713,2]
[338148376,1726312232231,-1119.0,0.00014713,2]
[338148377,1726312232241,-1921.0,0.00014713,2]
[338148378,1726312232250,-3343.0,0.00014713,2]
[338148379,1726312232259,-251.975,0.00014713,2]
[338148380,1726312232269,-150.0,0.00014726,2]
[338148381,1726312232278,-150.0,0.00014793,2]
[338148383,1726312232288,-184.486003,0.00014795,2]
[338148385,1726312232297,-3000.0,0.000148,2]
[338148387,1726312232307,-150.0,0.00014839,2]
[338148388,1726312232316,-150.0,0.0001488,2]
[338148390,1726312232326,-10770.0,0.0001488,2]
[338148392,1726312232335,-475.3617,0.0001488,2]
[338148394,1726312232344,-196.6822,0.0001488,2]
[338148396,1726312232354,-11061.4653,0.0001488,2]
[338148398,1726312232363,-690.0699,0.0001489,2]
[338148399,1726312232373,-196.4161,0.0001489,2]
[338148400,1726312232382,-1000.0,0.0001489,2]
[338148401,1726312232391,-3056.0212,0.0001489,2]
[338148402,1726312232401,-182.63994981,0.0001489,2]
[338148403,1726312232411,-173.42378679,0.0001489,2]
[338148404,1726312232421,-172.896,0.00014891,2]
[338148405,1726312232430,-345.954,0.00014891,2]
[338148406,1726312232439,-182.6399498,0.00014893,2]
[338148407,1726312232449,-182.6399498,0.00014897,2]
[338148408,1726312232458,-175.5238322,0.00014897,2]
[338148409,1726312232467,-182.6399498,0.000149,2]
[338148410,1726312232476,-540.54720745,0.000149,2]
[338148411,1726312232485,-168.48175141,0.000149,2]
[338148412,1726312232494,-934.1207825,0.00014934,2]
[338148413,1726312232503,-150.0,0.00014958,2]
[338148414,1726312232512,-150.0,0.00014961,2]
[338148415,1726312232522,-829.68263,0.00014969,2]
[338148416,1726312232531,-246891.990889,0.0001498,3]
[338148417,1726312232539,-37033.7986334,0.00014986,3]
[338148418,1726312232548,-150.0,0.00014986,2]
[338148419,1726312232557,-150.0,0.00014987,2]
[338148420,1726312232566,-300.02,0.00014989,2]
[338148421,1726312232577,-6973.33178298,0.00014989,2]
[338148422,1726312232586,-37033.7986334,0.0001499,3]
[338148423,1726312232595,-129752.038767,0.0001499,3]
[338148424,1726312232604,-151.0,0.0001499,2]
[338148425,1726312232613,-151.0,0.0001499,2]
[338148426,1726312232623,-151.0,0.0001499,2]
[338148427,1726312232632,-151.0,0.0001499,2]
[338148428,1726312232641,-217.498,0.0001499,2]
[338148429,1726312232650,-152.323672,0.0001499,2]
[338148430,1726312232659,-151.0,0.0001499,2]
[338148431,1726312232669,-151.0,0.0001499,2]
[338148432,1726312232678,-151.0,0.0001499,2]
[338148433,1726312232687,-151.0,0.0001499,2]
[338148434,1726312232696,-151.0,0.0001499,2]
[338148435,1726312232705,-151.0,0.0001499,2]
[338148436,1726312232715,-155.12062,0.0001499,2]
[338148437,1726312232724,-151.0,0.0001499,2]
[338148438,1726312232733,-151.0,0.0001499,2]
[338148439,1726312232742,-151.0,0.0001499,2]
[338148440,1726312232751,-151.0,0.0001499,2]
[338148441,1726312232760,-151.0,0.0001499,2]
[338148442,1726312232769,-151.0,0.0001499,2]
[338148443,1726312232779,-917.92596,0.0001499,2]
[338148444,1726312232787,-917.92596,0.0001499,2]
[338148445,1726312232797,-151.0,0.0001499,2]
[338148446,1726312232806,-153.821877,0.0001499,2]
[338148447,1726312232815,-151.0,0.0001499,2]
[338148448,1726312232824,-151.0,0.0001499,2]
[338148449,1726312232832,-151.0,0.0001499,2]
[338148450,1726312232841,-151.0,0.0001499,2]
[338148451,1726312232851,-151.0,0.0001499,2]
[338148452,1726312232861,-151.0,0.0001499,2]
[338148453,1726312232870,-151.0,0.0001499,2]
[338148454,1726312232879,-151.0,0.0001499,2]